[Event "European Women-ch 2023"]
[Site "Petrovac"]
[Date "2023.03.23"]
[Round "6.1"]
[White "Kiolbasa, Oliwia"]
[Black "Bulmaga, Irina"]
[Result "1-0"]
[ECO "C77"]
[WhiteElo "2406"]
[BlackElo "2438"]
[Annotator "TA"]
[PlyCount "119"]
[EventDate "2023.03.15"]
[EventType "swiss"]
[EventCountry "MNE"]
[SourceTitle "playchess.com"]
[Source "ChessBase"]
[SourceQuality "1"]
[TimeControl "40/5400+30:1800+30"]

{[%evp 10,119,8,14,22,25,24,27,37,43,37,31,32,21,73,30,30,30,41,35,37,52,24,10,7,16,9,8,7,6,13,0,0,0,4,0,114,109,106,112,136,131,130,133,363,366,377,371,395,383,438,424,407,402,470,450,502,466,472,451,394,333,529,526,520,515,507,500,567,569,610,452,643,522,479,461,640,589,977,591,822,809,852,1032,900,852,936,858,850,850,838,835,827,815,766,702,1010,1011,959,962,1069,1037,1021,985,1132,984,2341,1242,3605,2628,5693,2447]} 1. e4 {[%emt 0:00:02]} e5 {[%emt 0:00:10]} 2. Nf3 {[%emt 0:00:08]} Nc6 {[%emt 0:00:06]} 3. Bb5 {[%emt 0:00:08]} a6 {[%emt 0:00:08]} 4. Ba4 {[%emt 0:00:15]} Nf6 {[%emt 0:00:09]} 5. Nc3 {[%emt 0:01:24]} b5 {[%emt 0:06:33]} 6. Bb3 {[%emt 0:02:03]} Bd6 {[%emt 0:04:52] C77: Ruy Lopez: 3...a6 4 Ba4 Nf6, unusual lines.} 7. d3 {[%emt 0:18:32]} Na5 {[%emt 0:10:43]} 8. Bg5 {[%emt 0:00:11]} Nxb3 {[%emt 0:11:28] White has an edge.} 9. axb3 {[%emt 0:00:15]} Bb7 {[%emt 0:04:01]} 10. d4 {[%emt 0:09:32]} (10. O-O $5 {[%cal Rd3d4]}) 10... exd4 {[%emt 0:04:31]} 11. Qxd4 {[%emt 0:00:45] Black must now prevent e5.} O-O {[%emt 0:13:41][%cal Bh8f8,Bf8e8,Be8e6][%mdl 32]} (11... h6 $11 12. Be3 b4) 12. e5 {[%emt 0:17:04][%cal Rg5f6] White is more active.} (12. O-O-O $5 {[%cal Re4e5]} Be7 13. e5 $14) 12... Bxf3 $1 {[%emt 0:00:40]} 13. Bxf6 {[%emt 0:04:11]} (13. exf6 Re8+ 14. Kd2 Bb7 $17) (13. gxf3 Bxe5 14. Qh4 (14. Qxe5 $2 Re8 $19) 14... h6 $17) 13... gxf6 {[%emt 0:00:08]} 14. exd6 {[%emt 0:00:04]} Re8+ $1 {[%emt 0:02:22]} (14... Bxg2 $2 15. Rg1 Kh8 16. dxc7 Qe7+ 17. Kd2 $18) (14... c5 15. Qxc5 Re8+ 16. Kf1 $16) 15. Kd2 {[%emt 0:01:12]} Bc6 {[%emt 0:02:02]} (15... Bxg2 $2 16. Rhg1 Re6 17. Ne4 $18) 16. Rae1 {[%emt 0:10:49] Threatens to win with Rxe8+. Black is weak on the dark squares} Re6 $132 {[%emt 0:03:31][%mdl 2048] Black has counterplay} 17. dxc7 {[%emt 0:01:52]} Qxc7 {[%emt 0:01:05] aiming for ...Rd6.} 18. Rxe6 {[%emt 0:03:29]} dxe6 {[%emt 0:00:08]} 19. Qxf6 {[%emt 0:00:33]} b4 $1 {[%emt 0:00:42]} (19... Bxg2 $2 20. Rg1 Qd8+ 21. Qxd8+ Rxd8+ 22. Ke3 $18) 20. Qg5+ {[%emt 0:01:10]} (20. Nd1 {feels hotter.} Rd8+ 21. Kc1 Be4 22. Ne3) 20... Kh8 {[%emt 0:01:30]} 21. Qf6+ {[%emt 0:08:59]} Kg8 {[%emt 0:00:02]} 22. Nd1 {[%emt 0:00:24]} Qa5 {[%emt 0:07:44] Wards off Qg5+} (22... Bxg2 $2 23. Rg1 Qd8+ 24. Qxd8+ Rxd8+ 25. Ke2 $18) (22... Be4 $11 {remains equal.}) 23. Ne3 $16 {[%emt 0:00:07]} Rd8+ {[%emt 0:02:27] [#]} 24. Ke2 $1 {[%emt 0:00:06][%cal Bd2e2,Be2f3,Bf3g3,Bg3h3][%mdl 32]} ({Don't play} 24. Ke1 $6 Bb5 25. Qg5+ Kf8 $15) 24... Bb5+ {[%emt 0:10:57]} 25. Kf3 {[%emt 0:03:00]} Qc7 {[%emt 0:02:16]} 26. h4 {[%emt 0:07:12]} Qc6+ $2 {[%emt 0:06:08] [#] This move loses the game for Black.} (26... h5 $16) 27. Kg3 $1 $18 {[%emt 0:01:33]} (27. Kg4 Qe4+ 28. Kh3 Rd4 $16) 27... Qc7+ {[%emt 0:03:31]} 28. Kh3 {[%emt 0:00:41]} Rd7 {[%emt 0:01:23]} 29. Ng4 {[%emt 0:04:13][%cal Be3g4,Bg4f6,Bf6h5,Bh5g3][%mdl 32]} h5 {[%emt 0:01:27]} 30. Qg5+ {[%emt 0:01:17]} Kf8 {[%emt 0:00:02]} 31. Nf6 {[%emt 0:01:12] Intending Nh7+ and mate.} ({Resist} 31. Qxh5 Qf4 32. Re1 Rd5 33. Qh8+ Ke7 $18) 31... Rd4 {[%emt 0:00:28]} 32. Nxh5 {[%emt 0:02:05]} Rd5 {[%emt 0:00:49]} 33. Qh6+ {[%emt 0:00:39]} Ke7 {[%emt 0:00:02]} 34. Qf6+ {[%emt 0:00:40]} Kd6 {[%emt 0:00:54]} 35. Qf4+ {[%emt 0:00:20]} e5 {[%emt 0:00:02]} (35... Kc6 $142 36. Qf3 Kb6) 36. Qf6+ {[%emt 0:00:08] White is clearly winning.} Kc5 {[%emt 0:00:13]} 37. Ng3 {[%emt 0:00:47] White threatens Ne4+ and mate.} Bd7+ {[%emt 0:00:52]} 38. Kh2 {[%emt 0:00:05] Ne4+ would be deadly.} Kb5 {[%emt 0:00:56]} 39. Re1 {[%emt 0:01:37][%cal Bh1e1,Be1e2,Be2e4,Be4d4,Bd4d2,Bd2d8,Bd8h8][%mdl 32]} Be6 {[%emt 0:00:28]} 40. Re2 {[%emt 0:00:00]} a5 {[%emt 0:00:00]} (40... Kc6 $142 41. h5 e4) 41. h5 {[%emt 0:13:11]} e4 {[%emt 0:07:52]} 42. h6 {[%emt 0:01:03]} ({Weaker is} 42. Rxe4 Rxh5+ 43. Kg1 Qxc2 $11) 42... Rf5 {[%emt 0:00:54]} 43. Qg7 {[%emt 0:02:35]} Qd6 {[%emt 0:04:16] And now ...Rh5+ would win.} 44. Rxe4 {[%emt 0:02:32]} Rh5+ {[%emt 0:03:37]} 45. Kg1 {[%emt 0:00:06]} Qd1+ {[%emt 0:00:24]} 46. Nf1 {[%emt 0:00:05] Re5+ is the strong threat.} Qd5 {[%emt 0:01:15] Prevents Re5} 47. Rd4 {[%emt 0:05:10]} Qc5 {[%emt 0:01:59]} 48. Rd2 {[%emt 0:00:41]} Qg5 {[%emt 0:02:09] Repels Ng3} 49. Qxg5+ {[%emt 0:02:49]} Rxg5 {[%emt 0:00:04][%mdl 4096] Endgame KRB-KRN} 50. Rd8 {[%emt 0:00:06]} Rh5 {[%emt 0:00:56]} 51. Rh8 {[%emt 0:00:05]} Kc6 {[%emt 0:00:28]} 52. Ne3 {[%emt 0:01:33]} Kd7 {[%emt 0:03:11]} 53. g4 {[%emt 0:02:30]} Rh4 {[%emt 0:03:29]} 54. Kg2 {[%emt 0:00:06]} Ke7 {[%emt 0:00:33]} 55. Kg3 {[%emt 0:00:05]} Rh1 {[%emt 0:00:07]} 56. f4 {[%emt 0:01:13][%cal Bf2f4,Bf4f5][%mdl 32]} f6 {[%emt 0:02:08]} 57. f5 {[%emt 0:01:10]} Bd7 {[%emt 0:01:04]} 58. Nd5+ {[%emt 0:01:16]} Kd6 {[%emt 0:00:19]} 59. Nxf6 {[%emt 0:00:18]} Bc6 {[%emt 0:00:15]} 60. h7 {[%emt 0:00:33] Weighted Error Value: White=0.07 (flawless) /Black=0.40} 1-0

[Event "European Women-ch 2023"]
[Site "Petrovac"]
[Date "2023.03.23"]
[Round "6.1"]
[White "Guichard, Pauline"]
[Black "Gajcin, Marina"]
[Result "1-0"]
[ECO "D91"]
[WhiteElo "2379"]
[BlackElo "2215"]
[Annotator "TA"]
[PlyCount "119"]
[EventDate "2023.03.15"]
[EventType "swiss"]
[EventCountry "MNE"]
[SourceTitle "playchess.com"]
[Source "ChessBase"]
[SourceQuality "1"]
[TimeControl "40/5400+30:1800+30"]

{[%evp 9,119,8,28,22,14,23,24,22,33,0,14,14,7,-26,-16,-30,-14,-12,-17,-56,-35,-28,-27,-24,-28,-66,-26,-90,-87,-87,-106,-119,-104,-119,-70,-67,-84,-110,-103,-132,-8,-6,-6,-9,0,0,0,0,64,60,61,66,91,64,81,72,102,107,125,107,114,28,24,22,22,29,95,90,91,91,71,96,74,53,80,8,6,6,93,108,152,123,969,657,954,939,1158,1120,1043,981,897,767,5915,5923,11378,9124,9925,6570,12829,10811,5604,5604,29971,29974,29974,29974,29973,29970,29985,29986,29986,29987]} 1. d4 {[%emt 0:00:03]} Nf6 {[%emt 0:00:11]} 2. c4 {[%emt 0:00:06]} g6 {[%emt 0:00:09]} 3. Nc3 {[%emt 0:00:09]} d5 {[%emt 0:00:08]} 4. Nf3 {[%emt 0:00:09]} Bg7 {[%emt 0:00:05]} 5. Bg5 {[%emt 0:00:05]} c5 {[%emt 0:00:27]} 6. Bxf6 {[%emt 0:15:12]} (6. dxc5 {looks sharper.} Be6 7. Qb3 dxc4 8. Qxb7 Nbd7 9. Rd1) 6... Bxf6 {[%emt 0:00:16]} 7. cxd5 {[%emt 0:00:36]} cxd4 {[%emt 0:00:13]} 8. Nxd4 {[%emt 0:02:12] White has an edge.} Qb6 $1 {[%emt 0:00:09][%csl LRb2,LRd4]} 9. e3 {[%emt 0:11:24]} (9. Qa4+ $2 Bd7 10. Ndb5 (10. Ncb5 $2 a6 $19) 10... Bxc3+ 11. bxc3 Bxb5 $19) 9... Qxb2 {[%emt 0:03:24]} 10. Rc1 {[%emt 0:00:15]} O-O {[%emt 0:09:11]} 11. Be2 {[%emt 0:00:22]} Bxd4 {[%emt 0:16:45]} 12. exd4 {[%emt 0:00:08]} Nd7 {[%emt 0:02:25]} 13. O-O {[%emt 0:01:38][%cal Od5d6]} Nf6 {[%emt 0:01:01]} 14. Re1 {[%emt 0:10:10]} Bd7 {[%emt 0:05:16]} 15. Bf3 {[%emt 0:00:24]} Qb4 {[%emt 0:07:34] Wards off Na4} (15... Rac8 $5 {[%cal Rc8c3]} 16. Qb3 Qxb3 17. axb3 Rfe8 $15) 16. Qb3 {[%emt 0:22:32]} a5 {[%emt 0:18:29]} 17. Ne2 {[%emt 0:10:42]} Rac8 {[%emt 0:08:59]} 18. Qe3 {[%emt 0:00:16]} (18. Qxb4 $11 {keeps the balance.} axb4 19. h3) 18... Rxc1 $17 {[%emt 0:03:04]} 19. Nxc1 {[%emt 0:00:04][%cal Be2c1,Bc1d3,Bd3e5][%mdl 32]} Qd6 {[%emt 0:02:45]} 20. Qb3 {[%emt 0:09:37]} (20. Qxe7 $2 Re8 $19) 20... b6 {[%emt 0:02:30]} 21. Nd3 {[%emt 0:00:51]} Bg4 {[%emt 0:05:12]} (21... a4 $17 22. Qb4 Rc8) 22. Bxg4 $1 $15 {[%emt 0:01:16]} Nxg4 {[%emt 0:00:01]} 23. Ne5 {[%emt 0:00:06]} Nf6 {[%emt 0:04:58]} 24. Nc6 {[%emt 0:00:05] [#]} Re8 {[%emt 0:00:45]} (24... Qxd5 $2 25. Nxe7+ (25. Qxb6 Qxa2 26. Qxa5 Qxa5 $15) 25... Kg7 26. Nxd5 $18) (24... Rc8 $1 $17 {...Rc7 is the strong threat.} 25. Na7 Re8) 25. Qxb6 $11 {[%emt 0:04:39]} Nxd5 {[%emt 0:00:04]} 26. Qb5 {[%emt 0:00:26]} (26. Qxa5 $2 Qxc6 27. g3 Qc4 $19) 26... Nc7 {[%emt 0:02:10]} 27. Qc4 {[%emt 0:02:00]} (27. Qxa5 $2 Qxc6 28. Qc5 Qb7 $19) 27... Qd5 {[%emt 0:02:14]} 28. Qa4 {[%emt 0:00:04]} (28. Nxe7+ $2 Rxe7 29. Qf1 Rxe1 30. Qxe1 Qxa2 $19) 28... e6 {[%emt 0:01:13]} (28... Qd6 $11) 29. Re5 $14 {[%emt 0:02:02][%cal Be1e5,Be5a5,Ba5a7][%mdl 32]} (29. Nxa5 $6 Kg7 $11) 29... Qd6 {[%emt 0:01:13]} 30. Rxa5 {[%emt 0:00:04]} (30. Nxa5 Rb8 31. Nb3 Nd5 $11) 30... Rc8 {[%emt 0:01:27][%cal Oc7b5]} 31. g3 {[%emt 0:02:41]} Kg7 {[%emt 0:01:18]} 32. Ne5 {[%emt 0:02:15]} Rb8 {[%emt 0:00:36]} 33. Ra7 {[%emt 0:02:26] [#] Threatens to win with Qc2.} (33. Kg2 {simplifies} Rb4 34. Qc6 Qxc6+ 35. Nxc6 Rb6 36. Ne5) 33... Rb1+ {[%emt 0:01:36]} 34. Kg2 {[%emt 0:00:01]} Rc1 {[%emt 0:00:50] Prevents Qc4} 35. Qd7 {[%emt 0:02:01] Active counter play!} (35. Ra5 $16) 35... Qxd7 $11 {[%emt 0:00:15]} 36. Nxd7 {[%emt 0:00:03][%mdl 4096] Endgame KRN-KRN} Nb5 {[%emt 0:00:11][%csl LRa7,LRd4]} 37. Rb7 {[%emt 0:00:04]} Nxd4 {[%emt 0:01:17]} (37... Nd6 $1 $11 38. Rb4 Rc2) 38. Ne5 $16 {[%emt 0:00:03]} Kf6 {[%emt 0:00:25]} 39. f4 {[%emt 0:01:46][%csl Ge5][%cal Rb7f7,Bf2f4,Bf4g5,Bg5g6][%mdl 32]} (39. Rxf7+ $2 {loses.} Kxe5 40. Rxh7 g5 $19) 39... Rc2+ {[%emt 0:00:38]} 40. Kh3 {[%emt 0:00:00][%csl Ge5][%cal Rb7f7]} Kf5 {[%emt 0:00:00]} 41. Rxf7+ {[%emt 0:07:23]} Ke4 {[%emt 0:04:35]} 42. Rxh7 {[%emt 0:08:46]} (42. a4 $16) 42... g5 $1 $11 {[%emt 0:02:10]} 43. Ng6 {[%emt 0:09:46]} Rxa2 {[%emt 0:09:54]} (43... gxf4 $11 44. gxf4 (44. Nxf4 Nf3 $11) 44... Kf5) 44. fxg5 $16 {[%emt 0:01:49]} Nf3 {[%emt 0:01:34] Inhibits Rh4+.} 45. Re7 {[%emt 0:00:33]} Rxh2+ $2 {[%emt 0:08:13][%mdl 8192] A mistake that costs the game.} (45... Kd4 $16 46. Rb7 (46. Rxe6 $2 {too greedy.} Nxg5+ 47. Kg4 Nxe6 $19) 46... Nxg5+ 47. Kg4 Ne4) 46. Kg4 $18 {[%emt 0:00:02]} e5 {[%emt 0:00:37]} 47. Nh4 {[%emt 0:00:24]} Nd4 {[%emt 0:05:18]} 48. g6 {[%emt 0:00:08]} Ra2 {[%emt 0:00:25]} 49. g7 {[%emt 0:00:47]} Ra8 {[%emt 0:00:09] Against g8Q} 50. Ng6 {[%emt 0:00:26]} Nc6 {[%emt 0:00:11]} 51. Re6 {[%emt 0:02:02]} Rg8 {[%emt 0:00:22]} 52. Rxc6 {[%emt 0:00:24]} Rxg7 {[%emt 0:00:05] KRN-KR} 53. Re6 {[%emt 0:00:52]} Kd4 {[%emt 0:00:08]} 54. Kf5 {[%emt 0:00:52] White wants to mate with g4.} Rf7+ {[%emt 0:01:03]} 55. Rf6 {[%emt 0:00:12]} Rh7 {[%emt 0:03:01]} 56. Nxe5 {[%emt 0:01:03] White mates.} Rh5+ {[%emt 0:00:14]} 57. Kf4 {[%emt 0:00:03]} Kd5 {[%emt 0:00:29]} 58. g4 {[%emt 0:00:26]} Rxe5 {[%emt 0:00:09]} 59. Rf5 {[%emt 0:00:04]} Rxf5+ {[%emt 0:00:04]} 60. Kxf5 {[%emt 0:00:04] Weighted Error Value: White=0.15 (very precise) /Black=0.28 (precise)} 1-0

[Event "European Women-ch 2023"]
[Site "Petrovac"]
[Date "2023.03.23"]
[Round "6.1"]
[White "Slaba, Andrea"]
[Black "Sieber, Fiona"]
[Result "0-1"]
[ECO "D40"]
[WhiteElo "2061"]
[BlackElo "2217"]
[Annotator "TA"]
[PlyCount "58"]
[EventDate "2023.03.15"]
[EventType "swiss"]
[EventCountry "MNE"]
[SourceTitle "playchess.com"]
[Source "ChessBase"]
[SourceQuality "1"]
[TimeControl "40/5400+30:1800+30"]

{[%evp 19,58,-5,0,-26,-12,-24,-14,-68,-38,-68,-61,-93,-98,-119,-136,-193,-190,-169,-193,-321,-334,-337,-311,-490,-516,-1378,-1389,-1227,-740,-737,-723,-725,-635,-989,-989,-6142,-989,-29988,-950,-5027,-1270]} 1. Nf3 {[%emt 0:00:01]} c5 {[%emt 0:00:08]} 2. c4 {[%emt 0:00:20]} Nc6 {[%emt 0:00:06]} 3. Nc3 {[%emt 0:00:05]} e6 {[%emt 0:05:25]} 4. e3 {[%emt 0:00:08]} d5 {[%emt 0:02:05]} 5. d4 {[%emt 0:00:22]} Nf6 {[%emt 0:01:01]} 6. a3 {[%emt 0:00:06]} cxd4 {[%emt 0:03:06]} 7. exd4 {[%emt 0:00:07]} Be7 {[%emt 0:00:11]} 8. Bd3 {[%emt 0:04:12]} O-O {[%emt 0:01:05]} 9. O-O {[%emt 0:00:06]} dxc4 {[%emt 0:05:56]} 10. Bxc4 {[%emt 0:00:08]} b6 {[%emt 0:00:10]} 11. Bb3 {[%emt 0:01:52]} Bb7 {[%emt 0:00:55]} 12. Bc2 {[%emt 0:00:52]} Qd6 {[%emt 0:11:42]} 13. Ne2 {[%emt 0:26:34]} (13. Re1 $11) 13... e5 {[%emt 0:03:19]} 14. dxe5 {[%emt 0:03:11]} Nxe5 {[%emt 0:01:10]} 15. Nxe5 {[%emt 0:00:24]} Qxe5 {[%emt 0:00:02]} 16. Nf4 {[%emt 0:25:41]} Rad8 {[%emt 0:21:15] Black is more active.} 17. Qe2 {[%emt 0:00:31]} (17. Qe1 $17 Qc7 18. Qc3) 17... Qc7 $1 $19 {[%emt 0:00:10] ...Bd6 would be deadly.} 18. Be3 {[%emt 0:07:49] [#]} Bd6 $1 {[%emt 0:00:08]} 19. g3 {[%emt 0:01:29]} (19. Rac1 $142 Bxf4 20. Bxh7+ Nxh7 21. Rxc7 Bxc7 22. Qc4) 19... Qc6 {[%emt 0:02:04][%csl Gb7][%cal Rc6h1]} 20. f3 {[%emt 0:00:17]} Rfe8 {[%emt 0:00:56][%cal Oe8e3] Threatens to win with ...Rxe3!} 21. Ng2 {[%emt 0:00:46]} (21. Rad1 {might work better.} Rxe3 {[%mdl 64] Deflection} 22. Qxe3 Qxc2 23. b4) 21... Bc5 {[%emt 0:02:55]} 22. Qf2 {[%emt 0:02:02] [#]} (22. Rac1 $142 Rxe3 {[%mdl 64] Clearance} 23. Nxe3) 22... Ng4 $1 {[%emt 0:03:30][%cal Bf6g4,Bg4f2,Bf2h3][%mdl 608] Double Attack} 23. Be4 {[%emt 0:01:30]} (23. Ba4 Qxa4) 23... Nxf2 {[%emt 0:00:00]} 24. Bxc6 {[%emt 0:00:16]} Nh3+ {[%emt 0:00:00][%mdl 64] Zwischenzug} ({Weaker is} 24... Bxc6 25. Bxf2 Bf8 26. f4 $17) (24... Bxe3 $2 {is the wrong capture.} 25. Bxb7 Nh3+ 26. Kh1 $19) 25. Kh1 {[%emt 0:00:19]} Bxc6 {[%emt 0:00:00]} 26. Bxc5 {[%emt 0:00:15] White is weak on the light squares} bxc5 {[%emt 0:00:00]} 27. Rac1 {[%emt 0:00:23]} f6 {[%emt 0:08:03] And now ...Rd2 would win.} 28. Rxc5 {[%emt 0:01:44] [#]} Bxf3 {[%emt 0:00:16]} 29. Rc2 {[%emt 0:00:13]} Re2 {[%emt 0:00:57] Black took control after the opening. An interesting game.   Weighted Error Value: White=1.59/Black=0.98} 0-1

[Event "European Women-ch 2023"]
[Site "Petrovac"]
[Date "2023.03.23"]
[Round "6.2"]
[White "Khotenashvili, Bela"]
[Black "Wagner, Dinara"]
[Result "1/2-1/2"]
[ECO "E04"]
[WhiteElo "2491"]
[BlackElo "2411"]
[Annotator "TA"]
[PlyCount "111"]
[EventDate "2023.03.15"]
[EventType "swiss"]
[EventCountry "MNE"]
[SourceTitle "playchess.com"]
[Source "ChessBase"]
[SourceQuality "1"]
[TimeControl "40/5400+30:1800+30"]

{[%evp 24,111,30,30,30,29,29,29,33,30,34,29,29,39,28,27,27,25,28,20,20,20,20,20,35,15,12,0,4,0,0,0,8,0,0,0,0,0,0,0,0,0,0,0,0,0,0,0,0,0,0,0,0,0,0,0,0,0,0,0,0,0,0,0,0,0,0,0,0,0,0,0,0,0,0,0,0,0,0,0,0,0,0,0,0,0,0,0,0,-8]} 1. Nf3 {[%emt 0:00:06]} d5 {[%emt 0:00:04]} 2. g3 {[%emt 0:00:07]} c5 {[%emt 0:00:05]} 3. Bg2 {[%emt 0:00:13]} Nc6 {[%emt 0:00:12]} 4. d4 {[%emt 0:00:20]} e6 {[%emt 0:02:47]} 5. O-O {[%emt 0:00:21]} Nf6 {[%emt 0:00:12]} 6. c4 {[%emt 0:00:21]} dxc4 {[%emt 0:00:08]} 7. Qa4 {[%emt 0:00:13]} Bd7 {[%emt 0:00:57]} 8. Qxc4 {[%emt 0:01:41]} cxd4 {[%emt 0:00:22]} 9. Nxd4 {[%emt 0:00:17]} Rc8 {[%emt 0:00:18]} 10. Nc3 {[%emt 0:00:24]} Nxd4 {[%emt 0:00:22]} 11. Qxd4 {[%emt 0:00:02]} Bc5 {[%emt 0:00:08]} 12. Qh4 {[%emt 0:00:15]} Bc6 {[%emt 0:00:23]} 13. Rd1 {[%emt 0:00:55]} Qa5 {[%emt 0:00:26] seems to push 13...Qb6 aside. E04: Open Catalan: 5 Nf3.} 14. Bxc6+ {[%emt 0:01:38]} Rxc6 {[%emt 0:00:09]} 15. Bg5 {[%emt 0:08:52]} Be7 {[%emt 0:00:50] White has an edge.} 16. Ne4 {[%emt 0:05:53]} Qe5 {[%emt 0:00:43][%csl LRb2,LRe4]} 17. Nxf6+ {[%emt 0:03:46]} Bxf6 {[%emt 0:00:21]} 18. Bxf6 {[%emt 0:00:29]} Qxf6 {[%emt 0:00:06]} 19. Qb4 {[%emt 0:11:07]} (19. Qxf6 {simplifies} gxf6 20. Rac1 Rxc1 21. Rxc1 Kd7 22. Kg2) 19... Qe7 {[%emt 0:00:31]} 20. Qd4 {[%emt 0:00:06][%csl LRa7,LRg7]} O-O {[%emt 0:00:31]} 21. Rac1 {[%emt 0:01:35]} Rxc1 {[%emt 0:02:35]} 22. Rxc1 $11 {[%emt 0:00:12][%mdl 4096] Endgame KQR-KQR} b6 {[%emt 0:07:47]} 23. Qe5 {[%emt 0:05:17] [#]} Qf6 $146 {[%emt 0:22:42]} ({Predecessor:} 23... Qb4 24. Rc7 Qa4 25. a3 h6 26. Qd6 Qe4 27. Qd2 a5 28. f3 Qe5 29. Rc6 Qb5 30. Rc7 Qe5 {½-½ Liu,Y (2532)-Lou,Y (2490) CHN-ch Xinghua 2022 (10)}) 24. Qb5 {[%emt 0:08:57]} Qe7 {[%emt 0:01:39] Wards off Rc7. The position is equal.} 25. Rc6 {[%emt 0:23:48]} Rd8 {[%emt 0:04:45]} 26. Qc4 {[%emt 0:00:54]} g6 {[%emt 0:03:16]} 27. b4 {[%emt 0:00:19]} Qd7 {[%emt 0:12:43]} 28. b5 {[%emt 0:10:59]} Qd1+ {[%emt 0:07:32]} 29. Kg2 {[%emt 0:00:02]} Qd5+ {[%emt 0:00:56]} 30. e4 {[%emt 0:00:18]} Qxc4 {[%emt 0:00:47]} 31. Rxc4 {[%emt 0:00:02] KR-KR} Rd2 {[%emt 0:00:58]} 32. a4 {[%emt 0:00:55]} Ra2 {[%emt 0:00:43]} 33. e5 {[%emt 0:04:25]} Ra3 {[%emt 0:03:08]} 34. h4 {[%emt 0:04:45]} h5 {[%emt 0:02:33]} 35. Kf1 {[%emt 0:02:39]} Ra2 {[%emt 0:00:15]} 36. Ke1 {[%emt 0:01:17]} Kf8 {[%emt 0:01:09]} 37. Rf4 {[%emt 0:01:07]} Ke7 {[%emt 0:01:09]} 38. Kf1 {[%emt 0:00:21]} Ke8 {[%emt 0:00:38]} 39. Rc4 {[%emt 0:00:26]} Kd7 {[%emt 0:00:44]} 40. Ke1 {[%emt 0:00:00]} Kd8 {[%emt 0:00:00]} 41. Kf1 {[%emt 0:03:42]} Kd7 {[%emt 0:05:29]} 42. g4 {[%emt 0:01:58]} hxg4 {[%emt 0:06:18]} 43. Rxg4 {[%emt 0:00:03]} Ke7 {[%emt 0:00:22]} 44. Rc4 {[%emt 0:00:26] Strongly threatening Rc7+.} Kd7 {[%emt 0:06:19] Inhibits Rc7+.} 45. Re4 {[%emt 0:00:34]} Ke7 {[%emt 0:00:28]} 46. Kg2 {[%emt 0:00:06]} Ra3 {[%emt 0:00:55]} 47. f3 {[%emt 0:00:06]} Ra2+ {[%emt 0:12:35]} 48. Kg3 {[%emt 0:00:10]} Kf8 {[%emt 0:00:22]} 49. Rc4 {[%emt 0:05:04]} Kg7 {[%emt 0:01:04]} 50. Kg4 {[%emt 0:00:07]} Ra3 {[%emt 0:01:14]} 51. f4 {[%emt 0:01:20]} Ra1 {[%emt 0:04:13]} 52. Rd4 {[%emt 0:00:28]} Rg1+ {[%emt 0:01:24]} 53. Kf3 {[%emt 0:00:13]} Ra1 {[%emt 0:00:06]} 54. Kg4 {[%emt 0:00:39]} Rg1+ {[%emt 0:00:04]} 55. Kf3 {[%emt 0:00:07]} Ra1 {[%emt 0:00:04]} 56. Ke4 {[%emt 0:00:09] Weighted Error Value: White=0.02 (flawless) /Black=0.01 (flawless)} 1/2-1/2